bitfinex-derivatives/quotes_BNBF0:USTF0_20250807
["timestamp","ask_amount","ask_price","bid_price","bid_amount"]
[1754572517124,0.927,776.78,776.25,0.86096101]
[1754572517326,0.83397259,776.77,776.25,0.86096101]
[1754572517526,0.927,776.78,776.25,0.86096101]
[1754572517729,0.83396773,776.77,776.25,0.86096101]
[1754572517928,0.927,776.78,776.25,0.86096101]
[1754572518225,0.83396773,776.77,776.25,0.86096101]
[1754572518425,0.927,776.78,776.25,0.86096101]
[1754572518630,0.83398038,776.77,776.25,0.86096101]
[1754572518926,0.927,776.78,776.25,0.86096101]
[1754572519127,0.83398038,776.77,776.25,0.86096101]
[1754572519325,0.927,776.78,776.25,0.86096101]
[1754572519523,0.83399,776.77,776.25,0.86096101]
[1754572519729,0.927,776.78,776.25,0.86096101]
[1754572520029,0.83399,776.77,776.25,0.86096101]
[1754572520225,0.927,776.78,776.25,0.86096101]
[1754572520426,0.83399958,776.77,776.25,0.86096101]
[1754572520630,0.927,776.78,776.24,0.86096101]
[1754572520830,0.83399958,776.77,776.25,0.86096101]
[1754572521031,0.927,776.78,776.25,0.86096101]
[1754572521232,0.927,776.78,776.24,0.86096101]
[1754572521932,0.927,776.78,776.25,0.86096101]
[1754572523833,0.927,776.78,776.24,0.86096101]
[1754572524432,0.927,776.78,776.2,0.86096101]
[1754572534345,0.927,776.78,776.24,0.86096101]
[1754572534546,0.927,776.78,775.52,0.22412211]
[1754572534547,0.927,776.78,776.23,0.86096101]
[1754572536146,0.927,776.78,776.24,0.86096101]
[1754572536345,0.927,776.78,776.23,0.86096101]
[1754572537242,0.927,776.78,776.25,0.86096101]
[1754572537946,0.927,776.78,776.24,0.86096101]
[1754572538344,0.927,776.78,776.25,0.86096101]
[1754572539349,0.927,776.78,776.26,0.86096101]
[1754572541150,0.927,776.78,776.27,0.86096101]
[1754572541447,0.927,776.78,776.26,0.86096101]
[1754572542352,0.927,776.78,776.25,0.86096101]
[1754572544153,0.927,776.78,775.88,1.7286664]
[1754572544154,0.927,776.78,776.24,0.86096101]
[1754572545153,0.927,776.78,776.25,0.86096101]
[1754572546756,0.927,776.78,776.24,0.86096101]
[1754572547258,0.927,776.78,776.25,0.86096101]
[1754572549162,0.927,776.78,776.26,0.86096101]
[1754572550359,0.86781262,776.93,776.26,0.86096101]
[1754572550654,0.83501818,776.92,776.26,0.86096101]
[1754572550857,0.83501818,776.91,776.26,0.86096101]
[1754572551055,0.83501818,776.9,776.26,0.86096101]
[1754572551256,0.83501818,776.89,776.27,0.86096101]
[1754572551453,0.83501818,776.88,776.26,0.86096101]
[1754572551658,0.83501818,776.87,776.27,0.86096101]
[1754572551857,0.83501818,776.86,776.27,0.86096101]
[1754572552059,0.83501818,776.85,776.27,0.86096101]
[1754572552258,0.83501818,776.84,776.27,0.86096101]
[1754572552458,0.83501818,776.84,776.28,0.86096101]
[1754572553259,0.83501818,776.84,776.29,0.86096101]
[1754572554062,0.83501818,776.84,775.52,0.22412211]
[1754572554063,0.83501818,776.84,776.3,0.86096101]
[1754572555164,0.83501818,776.84,776.31,0.86096101]
[1754572555363,0.83501818,776.84,776.3,0.86096101]
[1754572555962,0.83501818,776.84,776.29,0.86096101]
[1754572556360,0.83501818,776.84,776.3,0.86096101]
[1754572556563,0.887,776.85,776.3,0.86096101]
[1754572556960,0.83535679,776.84,776.3,0.86096101]
[1754572557165,0.83535679,776.83,776.3,0.86096101]
[1754572557360,0.83535679,776.82,776.31,0.86096101]
[1754572557659,0.83535679,776.81,776.32,0.86096101]
[1754572557863,0.83535679,776.8,776.29,0.86096101]
[1754572558059,0.83535679,776.79,776.29,0.86096101]
[1754572558260,0.83535679,776.78,776.29,0.86096101]
[1754572558564,0.83535679,776.77,776.29,0.86096101]
[1754572558764,0.83535679,776.76,776.29,0.86096101]
[1754572558958,0.887,776.85,776.27,0.86096101]
[1754572559158,0.83541574,776.84,776.27,0.86096101]
[1754572559360,0.83541574,776.83,776.28,0.86096101]
[1754572559561,0.83541574,776.82,776.27,0.86096101]
[1754572559767,0.83541574,776.81,776.27,0.86096101]
[1754572559961,0.83541574,776.8,776.27,0.86096101]
[1754572560265,0.83541574,776.79,776.27,0.86096101]
[1754572560466,0.83541574,776.78,776.27,0.86096101]
[1754572560665,0.83541574,776.77,776.27,0.86096101]
[1754572560862,0.887,776.85,776.27,0.86096101]
[1754572560863,0.83541574,776.76,776.27,0.86096101]
[1754572561066,0.887,776.85,776.27,0.86096101]
[1754572561366,0.83545297,776.84,776.27,0.86096101]
[1754572561661,0.83545297,776.83,776.27,0.86096101]
[1754572561865,0.83545297,776.82,776.25,0.86096101]
[1754572562668,1.70326559,776.82,776.25,0.86096101]
[1754572562870,0.83545297,776.81,776.25,0.86096101]
[1754572563464,0.83545297,776.81,776.26,0.86096101]
[1754572565169,0.86781262,776.82,776.27,0.86096101]
[1754572565469,0.83559876,776.81,776.27,0.86096101]
[1754572566166,1.70341138,776.81,776.27,0.86096101]
[1754572566367,0.83559876,776.8,776.18,0.86096101]
[1754572566569,0.83559876,776.79,776.18,0.86096101]
[1754572566766,0.83559876,776.78,776.18,0.86096101]
[1754572567065,0.83559876,776.77,776.18,0.86096101]
[1754572567265,0.887,776.85,776.18,0.86096101]
[1754572567470,0.83558158,776.84,776.18,0.86096101]
[1754572567769,0.83558158,776.83,776.18,0.86096101]
[1754572567964,0.83558158,776.82,776.18,0.86096101]
[1754572568163,0.83558158,776.81,776.18,0.86096101]
[1754572568367,0.83558158,776.8,776.18,0.86096101]
[1754572568568,0.83558158,776.79,776.18,0.86096101]
[1754572568769,0.83558158,776.78,776.18,0.86096101]
[1754572568966,0.83558158,776.77,776.18,0.86096101]
[1754572569169,0.887,776.85,776.18,0.86096101]
[1754572569367,0.83556642,776.84,776.18,0.86096101]
[1754572569568,0.83556642,776.83,776.18,0.86096101]
[1754572569766,0.83556642,776.82,776.18,0.86096101]
[1754572569966,0.887,776.85,776.18,0.86096101]
[1754572569967,0.83556642,776.81,776.18,0.86096101]
[1754572570168,0.83556642,776.8,776.25,0.86096101]
[1754572570372,0.86781262,776.77,776.21,0.86096101]
[1754572570568,0.83556642,776.76,776.21,0.86096101]
[1754572570772,0.83556642,776.75,776.21,0.86096101]
[1754572571069,0.83556642,776.75,775.52,0.22412211]
[1754572571070,0.83556642,776.75,776.2,0.86096101]
[1754572571375,0.83556642,776.74,776.2,0.86096101]
[1754572571573,0.83556642,776.73,776.2,0.86096101]
[1754572571770,0.83556642,776.72,776.2,0.86096101]
[1754572571969,0.83556642,776.71,776.2,0.86096101]
[1754572572272,0.83556642,776.7,776.2,0.86096101]
[1754572572469,0.83556642,776.69,776.2,0.86096101]
[1754572572676,0.83556642,776.68,776.2,0.86096101]
[1754572572970,0.86781262,776.79,776.2,0.86096101]
[1754572573174,0.83539776,776.78,776.2,0.86096101]
[1754572573370,0.83539776,776.77,776.19,0.86096101]
[1754572573575,0.83539776,776.76,776.2,0.86096101]
[1754572573876,0.83539776,776.75,776.2,0.86096101]
[1754572574072,0.83539776,776.74,776.2,0.86096101]
[1754572574373,0.86781262,776.78,776.2,0.86096101]
[1754572574576,0.83642307,776.77,776.2,0.86096101]
[1754572574776,0.83642307,776.76,776.2,0.86096101]
[1754572574976,0.83642307,776.75,776.2,0.86096101]
[1754572575176,0.83642307,776.74,776.2,0.86096101]
[1754572575475,0.83642307,776.73,776.2,0.86096101]
[1754572575675,0.83642307,776.72,776.19,0.86096101]
[1754572575875,0.83642307,776.71,776.2,0.86096101]
[1754572576172,0.83642307,776.7,776.21,0.86096101]
[1754572576377,0.83642307,776.69,776.21,0.86096101]
[1754572576571,0.83642307,776.68,776.21,0.86096101]
[1754572576769,0.86781262,776.81,776.22,0.86096101]
[1754572576970,0.83626554,776.8,776.22,0.86096101]
[1754572577172,0.83626554,776.79,776.22,0.86096101]
[1754572577376,0.83622657,776.78,776.22,0.86096101]
[1754572577578,0.83622657,776.77,776.22,0.86096101]
[1754572577775,0.83622657,776.76,776.22,0.86096101]
[1754572577978,0.83622657,776.75,776.22,0.86096101]
[1754572578277,0.83622657,776.74,776.22,0.86096101]
[1754572578476,0.887,776.85,776.08,0.86096101]
[1754572578676,0.83619319,776.84,776.16,0.86096101]
[1754572578879,0.83619319,776.84,775.91,1.1527377]
[1754572578880,0.83619319,776.83,776.2,0.86096101]
[1754572579180,0.83619319,776.82,776.22,0.86096101]
[1754572579376,0.83619319,776.81,776.22,0.86096101]
[1754572579578,0.83619319,776.8,776.22,0.86096101]
[1754572579879,0.887,776.85,776.22,0.86096101]
[1754572579880,0.83619319,776.79,776.22,0.86096101]
[1754572580079,0.83619319,776.78,776.23,0.86096101]
[1754572580380,0.83619319,776.77,776.24,0.86096101]
[1754572580680,0.83619319,776.76,776.24,0.86096101]
[1754572580878,0.887,776.85,776.24,0.86096101]
[1754572581180,0.83612399,776.84,776.25,0.86096101]
[1754572581375,0.83612399,776.83,776.25,0.86096101]
[1754572581674,0.83612399,776.82,776.25,0.86096101]
[1754572581879,0.83612399,776.81,776.25,0.86096101]
[1754572582079,0.83612399,776.8,776.25,0.86096101]
[1754572582275,0.83612399,776.79,776.26,0.86096101]
[1754572582475,0.83612399,776.78,776.26,0.86096101]
[1754572582680,0.83612399,776.77,776.26,0.86096101]
[1754572582978,0.83612399,776.76,776.26,0.86096101]
[1754572583175,0.83612399,776.75,776.26,0.86096101]
[1754572583380,0.887,776.85,776.25,0.86096101]
[1754572583576,0.8360978,776.84,776.25,0.86096101]
[1754572583775,0.8360978,776.83,776.25,0.86096101]
[1754572583980,0.8360978,776.82,776.31,0.86096101]
[1754572584177,0.8360978,776.81,776.31,0.86096101]
[1754572584378,0.8360978,776.8,776.31,0.86096101]
[1754572584580,0.83604585,776.79,776.31,0.86096101]
[1754572584780,0.83604585,776.78,776.3,0.86096101]
[1754572585081,0.86781262,776.87,776.31,0.86096101]
[1754572585282,0.83598233,776.86,776.31,0.86096101]
[1754572585478,0.83598233,776.85,776.22,0.86096101]
[1754572585676,0.86781262,776.99,776.22,0.86096101]
[1754572585881,0.83595149,776.98,776.25,0.86096101]
[1754572586078,0.83595149,776.97,776.25,0.86096101]
[1754572586379,0.83595149,776.96,776.24,0.86096101]
[1754572586678,0.83595149,776.95,776.24,0.86096101]
[1754572586978,0.83595149,776.94,776.24,0.86096101]
[1754572587182,0.83595149,776.93,776.24,0.86096101]
[1754572587384,0.83595149,776.92,776.24,0.86096101]
[1754572587578,0.83595149,776.91,776.24,0.86096101]
[1754572587782,0.83595149,776.9,776.24,0.86096101]
[1754572588083,0.86781262,777.02,776.24,0.86096101]
[1754572588084,0.83595149,776.89,776.24,0.86096101]
[1754572588284,1.37605506,777.26,776.23,0.86096101]
[1754572588285,0.83595149,776.88,776.23,0.86096101]
[1754572588586,0.86781262,777.08,776.26,0.86096101]
[1754572588782,0.83587185,777.07,776.26,0.86096101]
[1754572589085,0.83587185,777.06,776.29,0.86096101]
[1754572589283,0.83587185,777.05,776.29,0.86096101]
[1754572589585,0.83587185,777.04,776.28,0.86096101]
[1754572589882,0.83587185,777.03,776.32,0.86096101]
[1754572590083,0.83587185,777.02,776.32,0.86096101]
[1754572590287,0.83587185,777.01,776.32,0.86096101]
[1754572590485,0.83587185,777.0,776.37,0.86096101]
[1754572590689,0.83587185,776.99,776.37,0.86096101]
[1754572590986,0.83587185,776.98,776.38,0.86096101]
[1754572591290,0.83587185,776.97,776.42,0.86096101]
[1754572591489,0.86781262,777.09,776.42,0.86096101]
[1754572591685,0.83547315,777.08,776.42,0.86096101]
[1754572591886,0.83547315,777.07,776.42,0.86096101]
[1754572592186,0.83547315,777.06,776.41,0.86096101]
[1754572592386,0.83547315,777.06,776.22,1.1527377]
[1754572592387,0.83547315,777.05,776.4,0.86096101]
[1754572592590,0.86781262,777.12,776.4,0.86096101]
[1754572592888,0.83527637,777.11,776.4,0.86096101]
[1754572593089,0.83527637,777.1,776.4,0.86096101]
[1754572593290,0.83527637,777.09,776.39,0.86096101]
[1754572593489,0.86781262,777.14,776.39,0.86096101]
[1754572593490,0.83527637,777.08,776.39,0.86096101]
[1754572593687,0.22395696,777.34,776.41,0.86096101]
[1754572593688,0.83527637,777.07,776.41,0.86096101]
[1754572593889,0.83527637,777.06,776.41,0.86096101]
[1754572594187,0.83527637,777.05,776.41,0.86096101]
[1754572594388,0.83527637,777.04,776.4,0.86096101]
[1754572594689,0.86781262,777.17,776.41,0.86096101]
[1754572594886,0.83487621,777.16,776.41,0.86096101]
[1754572595191,0.86781262,777.13,776.43,0.86096101]
[1754572595390,0.86781262,777.13,775.94,0.22389932]
[1754572595391,0.83487621,777.12,776.42,0.86096101]
[1754572595591,0.83487621,777.11,776.42,0.86096101]
[1754572595891,0.83487621,777.1,776.42,0.86096101]
[1754572596088,0.83487621,777.09,776.42,0.86096101]
[1754572596286,0.83487621,777.08,776.41,0.86096101]
[1754572596488,0.83487621,777.07,776.41,0.86096101]
[1754572596690,0.83487621,777.06,776.41,0.86096101]
[1754572596890,0.83487621,777.05,776.41,0.86096101]
[1754572597191,0.83487621,777.04,776.41,0.86096101]
[1754572597494,0.86781262,777.15,776.4,0.86096101]
[1754572597692,0.83438758,777.14,776.4,0.86096101]
[1754572597993,0.83438758,777.13,776.4,0.86096101]
[1754572598294,0.83438758,777.12,776.39,0.86096101]
[1754572598494,0.86781262,777.15,776.4,0.86096101]
[1754572598495,0.83438758,777.11,776.4,0.86096101]
[1754572598691,0.83438758,777.11,775.94,0.22389932]
[1754572598692,0.83438758,777.1,776.39,0.86096101]
[1754572598993,0.83438758,777.09,776.39,0.86096101]
[1754572599195,0.22395696,777.34,776.39,0.86096101]
[1754572599196,0.83438758,777.08,776.39,0.86096101]
[1754572599393,0.83438758,777.07,776.39,0.86096101]
[1754572599593,0.83438758,777.06,776.39,0.86096101]
[1754572599793,0.86781262,777.17,776.38,0.86096101]
[1754572599994,0.719,777.05,776.38,0.86096101]
[1754572601097,0.719,777.05,776.39,0.86096101]
[1754572601299,0.719,777.05,776.38,0.86096101]
[1754572603097,0.719,777.05,776.4,0.86096101]
[1754572603599,0.719,777.05,776.43,0.86096101]
[1754572603802,0.719,777.05,775.94,0.22389932]
[1754572603803,0.719,777.05,776.39,0.86096101]
[1754572604003,0.719,777.05,776.44,0.86096101]
[1754572604302,0.719,777.05,776.43,0.86096101]
[1754572604598,0.719,777.05,776.44,0.86096101]
[1754572604803,0.719,777.05,776.43,0.86096101]
[1754572605502,0.719,777.05,776.41,0.86096101]
[1754572606302,0.719,777.05,776.4,0.86096101]
[1754572607398,0.719,777.05,776.39,0.86096101]
[1754572608903,0.719,777.05,776.43,0.86096101]
[1754572610301,0.719,777.05,776.42,0.86096101]
[1754572613502,0.719,777.05,775.94,0.22389932]
[1754572613503,0.719,777.05,776.44,0.86096101]
[1754572614210,0.719,777.05,776.45,0.86096101]
[1754572615207,0.719,777.05,776.37,0.86096101]
[1754572615505,0.719,777.05,776.41,0.86096101]
[1754572615910,0.719,777.05,776.4,0.86096101]
[1754572617108,0.719,777.05,776.39,0.86096101]
[1754572617313,0.719,777.05,776.38,0.86096101]
[1754572619409,0.719,777.05,776.37,0.86096101]
[1754572619814,0.719,777.05,776.4,0.86096101]
[1754572620015,0.719,777.05,776.43,0.86096101]
[1754572620514,0.719,777.05,776.46,0.86096101]
[1754572621517,0.719,777.05,776.47,0.86096101]
[1754572622213,0.719,777.05,776.46,0.86096101]
[1754572622813,0.719,777.05,775.94,0.22389932]
[1754572622814,0.719,777.05,776.47,0.86096101]
[1754572623117,0.719,777.05,776.46,0.86096101]
[1754572623518,0.719,777.05,776.33,0.86096101]
[1754572623813,0.719,777.05,776.34,0.86096101]
[1754572624415,0.719,777.05,776.35,0.86096101]
[1754572626616,0.719,777.05,776.34,0.86096101]
[1754572627619,0.719,777.05,776.35,0.86096101]
[1754572627916,0.719,777.05,776.33,0.86096101]
[1754572628121,0.719,777.05,776.34,0.86096101]
[1754572628419,0.719,777.05,776.36,0.86096101]
[1754572629315,0.719,777.05,776.38,0.86096101]
[1754572630120,0.719,777.05,776.37,0.86096101]
[1754572631119,0.719,777.05,776.38,0.86096101]
[1754572631318,0.719,777.05,776.39,0.86096101]
[1754572633320,0.719,777.05,776.46,0.86096101]
[1754572634417,0.719,777.05,776.47,0.86096101]
[1754572634621,0.719,777.05,776.46,0.86096101]
[1754572635319,0.719,777.05,776.49,0.86096101]
[1754572635520,0.719,777.05,776.5,0.86096101]
[1754572635920,0.86781262,777.49,776.51,0.86096101]
[1754572636222,0.82980603,777.48,776.51,0.86096101]
[1754572636421,0.82980603,777.47,776.51,0.86096101]
[1754572637423,0.82980603,777.47,776.52,0.86096101]
[1754572637621,0.83002301,777.46,776.51,0.86096101]
[1754572637919,0.83002301,777.45,776.51,0.86096101]
[1754572638119,0.83002301,777.44,776.52,0.86096101]
[1754572638323,0.83002301,777.43,776.52,0.86096101]
[1754572638523,0.83002301,777.42,776.52,0.86096101]
[1754572638723,0.83002301,777.41,776.52,0.86096101]
[1754572638920,0.83002301,777.4,776.52,0.86096101]
[1754572639122,0.83002301,777.39,776.52,0.86096101]
[1754572639321,0.83002301,777.38,776.52,0.86096101]
[1754572639626,0.83002301,777.37,776.52,0.86096101]
[1754572639821,0.83002301,777.36,776.52,0.86096101]
[1754572640019,0.83002301,777.35,776.52,0.86096101]
[1754572640224,0.83002301,777.34,776.52,0.86096101]
[1754572640521,0.86781262,777.48,776.53,0.86096101]
[1754572640724,0.792,777.33,776.53,0.86096101]
[1754572641623,0.792,777.33,776.35,1.1527377]
[1754572641922,0.792,777.33,775.94,0.22389932]
[1754572641923,0.792,777.33,776.51,0.85756762]
[1754572642620,0.792,777.33,776.43,0.85756762]
[1754572643325,0.792,777.33,776.48,0.85756762]
[1754572643623,0.792,777.33,776.47,0.85756762]
[1754572644022,0.792,777.33,776.53,0.85756762]
[1754572644222,0.792,777.33,776.54,0.85756762]
[1754572644422,0.83129942,777.32,776.55,0.85756762]
[1754572644622,0.83129942,777.31,776.55,0.85756762]
[1754572644827,0.83129942,777.31,775.94,0.22389932]
[1754572644828,0.792,777.33,776.56,0.85756762]
[1754572645321,0.792,777.33,776.57,0.85756762]
[1754572646328,0.792,777.33,776.58,0.85756762]
[1754572646626,0.792,777.33,776.48,0.85756762]
[1754572647224,0.792,777.33,776.49,0.85756762]
[1754572647421,0.792,777.33,776.5,0.85756762]
[1754572647624,0.792,777.33,776.51,0.85756762]
[1754572648127,0.792,777.33,776.48,0.85756762]
[1754572648327,0.792,777.33,776.49,0.85756762]
[1754572648626,0.792,777.33,776.51,0.85756762]
[1754572649529,0.792,777.33,776.52,0.85756762]
[1754572649824,0.792,777.33,776.53,0.85756762]
[1754572650022,0.792,777.33,776.52,0.85756762]
[1754572650223,0.792,777.33,776.53,0.85756762]
[1754572651030,0.792,777.33,776.57,0.85756762]
[1754572651226,0.792,777.33,776.58,0.85756762]
[1754572652433,0.792,777.33,776.61,0.85756762]
[1754572653029,0.792,777.33,776.38,1.1527377]
[1754572653030,0.83237055,777.32,776.69,0.85756762]
[1754572653232,0.83237055,777.31,776.69,0.85756762]
[1754572653433,0.83244296,777.3,776.69,0.85756762]
[1754572653729,0.792,777.33,776.69,0.85756762]
[1754572653929,0.83244292,777.32,776.69,0.85756762]
[1754572654137,0.83244292,777.31,776.69,0.85756762]
[1754572654340,0.792,777.33,776.69,0.85756762]
[1754572654637,0.83247538,777.32,776.69,0.85756762]
[1754572654833,0.83247538,777.31,776.69,0.85756762]
[1754572655034,0.792,777.33,776.69,0.85756762]
[1754572655234,0.83247538,777.32,776.69,0.85756762]
[1754572655443,0.83247538,777.31,776.69,0.85756762]
[1754572655637,0.792,777.33,776.69,0.85756762]
[1754572656542,0.792,777.33,776.7,0.85756762]
[1754572658344,0.792,777.33,776.71,0.85756762]
[1754572659240,0.792,777.33,776.7,0.85756762]
[1754572659445,0.792,777.33,776.71,0.85756762]
[1754572662542,0.792,777.33,776.72,0.85756762]
[1754572664043,0.792,777.33,776.75,0.85756762]
[1754572666346,0.792,777.33,775.94,0.22389932]
[1754572666347,0.792,777.33,776.74,0.85756762]
[1754572667254,0.792,777.33,776.73,0.85756762]
[1754572669156,0.792,777.33,776.72,0.85756762]
[1754572669357,0.792,777.33,776.73,0.85756762]
[1754572670255,0.792,777.33,776.75,0.85756762]
[1754572670456,0.792,777.33,776.74,0.85756762]
[1754572672360,0.792,777.33,776.75,0.85756762]
[1754572672857,0.792,777.33,776.76,0.85756762]
[1754572673458,0.792,777.33,776.77,0.85756762]
[1754572673659,0.792,777.33,776.76,0.85756762]
[1754572673958,0.86426729,777.65,776.76,0.85756762]
[1754572674158,1.69681714,777.64,776.76,0.85756762]
[1754572674360,0.83254985,777.63,776.76,0.85756762]
[1754572674560,0.83255214,777.62,776.7,0.85756762]
[1754572674858,0.83255214,777.61,776.67,0.85756762]
[1754572675056,0.83255214,777.6,776.67,0.85756762]
[1754572675362,0.83255214,777.59,776.65,0.85756762]
[1754572675660,0.83255214,777.58,776.65,0.85756762]
[1754572675955,0.83255214,777.57,776.65,0.85756762]
[1754572676155,0.83255214,777.56,776.65,0.85756762]
[1754572676359,0.83255214,777.55,776.65,0.85756762]
[1754572676559,0.83255214,777.54,776.65,0.85756762]
[1754572676761,0.83255214,777.53,776.65,0.85756762]
[1754572676961,0.86426729,777.65,776.65,0.85756762]
[1754572677162,0.8325693,777.64,776.65,0.85756762]
[1754572677361,0.8325693,777.63,776.66,0.85756762]
[1754572677561,0.8325693,777.62,776.66,0.85756762]
[1754572677858,0.8325693,777.61,776.66,0.85756762]
[1754572678058,0.8325693,777.6,776.66,0.85756762]
[1754572678264,0.8325693,777.59,776.66,0.85756762]
[1754572678463,0.8325693,777.58,776.66,0.85756762]
[1754572678764,0.8325693,777.57,776.66,0.85756762]
[1754572681461,0.8325693,777.57,776.67,0.85756762]
[1754572682260,0.83259043,777.56,776.67,0.85756762]
[1754572682462,0.86426729,777.53,776.74,0.85756762]
[1754572682660,0.83259043,777.52,776.74,0.85756762]
[1754572682960,0.83259043,777.51,776.75,0.85756762]
[1754572683162,0.83258752,777.5,776.75,0.85756762]
[1754572683361,0.83258752,777.49,776.75,0.85756762]
[1754572683564,0.83258752,777.48,776.75,0.85756762]
[1754572683765,0.83258752,777.47,776.75,0.85756762]
[1754572683964,0.83258752,777.46,776.75,0.85756762]
[1754572684265,0.83258752,777.45,776.75,0.85756762]
[1754572684460,0.83258752,777.44,776.75,0.85756762]
[1754572684664,0.83258752,777.43,776.75,0.85756762]
[1754572684862,0.83258752,777.42,776.75,0.85756762]
[1754572685060,0.86426729,777.54,776.75,0.85756762]
[1754572685265,0.86426729,777.52,776.76,0.85756762]
[1754572685462,0.83256851,777.51,776.76,0.85756762]
[1754572685663,0.83256851,777.5,776.76,0.85756762]
[1754572685859,0.83256851,777.49,776.76,0.85756762]
[1754572686161,0.83256851,777.48,776.76,0.85756762]
[1754572686363,0.83256851,777.47,776.76,0.85756762]
[1754572686664,0.83256851,777.46,776.76,0.85756762]
[1754572686858,0.83256851,777.45,776.76,0.85756762]
[1754572687060,0.83256851,777.44,776.76,0.85756762]
[1754572687265,0.83256851,777.43,776.76,0.85756762]
[1754572687465,0.83256851,777.42,776.76,0.85756762]
[1754572687765,0.86426729,777.52,776.76,0.85756762]
[1754572687967,0.8325722,777.51,776.76,0.85756762]
[1754572688168,0.8325722,777.5,776.76,0.85756762]
[1754572688368,0.83257331,777.49,776.76,0.85756762]
[1754572688667,0.83257331,777.48,776.76,0.85756762]
[1754572688864,0.83257331,777.47,776.76,0.85756762]
[1754572689164,0.83257331,777.46,776.76,0.85756762]
[1754572689467,0.83257331,777.45,776.77,0.85756762]
[1754572689667,0.83257331,777.44,776.77,0.85756762]
[1754572689964,0.83257331,777.43,776.77,0.85756762]
[1754572690168,0.83257331,777.42,776.77,0.85756762]
[1754572690365,0.83257331,777.41,776.77,0.85756762]
[1754572690668,0.86426729,777.51,776.77,0.85756762]
[1754572690867,0.83262966,777.5,776.77,0.85756762]
[1754572691065,0.83262966,777.49,776.76,0.85756762]
[1754572691564,0.8326661,777.48,776.76,0.85756762]
[1754572691768,0.8326661,777.47,776.76,0.85756762]
[1754572692065,0.8326661,777.46,776.76,0.85756762]
[1754572692268,0.8326661,777.45,776.78,0.85756762]
[1754572692465,0.8326661,777.44,776.77,0.85756762]
[1754572692669,0.8326661,777.43,776.77,0.85756762]
[1754572692868,0.8326661,777.42,776.77,0.85756762]
[1754572693168,0.8326661,777.41,776.77,0.85756762]
[1754572693369,0.8326661,777.4,776.77,0.85756762]
[1754572693665,0.8326661,777.39,776.77,0.85756762]
[1754572693866,0.86426729,777.47,776.75,0.85756762]
[1754572694171,1.69699138,777.46,776.76,0.85756762]
[1754572694469,0.83272409,777.45,776.75,0.85756762]
[1754572694668,0.832364,777.44,776.76,0.85756762]
[1754572694865,0.832364,777.43,776.76,0.85756762]
[1754572695063,0.832364,777.42,776.76,0.85756762]
[1754572695367,0.832364,777.41,776.76,0.85756762]
[1754572695565,0.832364,777.4,776.76,0.85756762]
[1754572695765,0.832364,777.39,776.76,0.85756762]
[1754572695965,0.832364,777.38,776.76,0.85756762]
[1754572696165,0.832364,777.37,776.76,0.85756762]
[1754572696368,0.86426729,777.46,776.76,0.85756762]
[1754572696565,0.83243636,777.45,776.76,0.85756762]
[1754572696769,0.83243636,777.44,776.76,0.85756762]
[1754572696970,0.83243636,777.43,776.76,0.85756762]
[1754572697167,0.83243636,777.42,776.76,0.85756762]
[1754572697371,0.83243636,777.41,776.76,0.85756762]
[1754572697573,0.83243636,777.4,776.76,0.85756762]
[1754572697772,0.83243636,777.39,776.76,0.85756762]
[1754572697974,0.83243636,777.38,776.75,0.85756762]
[1754572698277,0.83243636,777.37,776.76,0.85756762]
[1754572698468,0.86426729,777.47,776.76,0.85756762]
[1754572698672,0.83252008,777.46,776.76,0.85756762]
[1754572698873,0.83252008,777.45,776.76,0.85756762]
[1754572699072,0.83252008,777.44,776.76,0.85756762]
[1754572699271,0.83252008,777.43,776.75,0.85756762]
[1754572699468,0.83252008,777.42,776.75,0.85756762]
[1754572699675,0.83252008,777.41,776.75,0.85756762]
[1754572699874,0.83252008,777.4,776.75,0.85756762]
[1754572700072,0.83252008,777.39,776.75,0.85756762]
[1754572700377,0.83252008,777.38,776.75,0.85756762]
[1754572700776,0.86426729,777.48,776.75,0.85756762]
[1754572700973,0.83261665,777.47,776.75,0.85756762]
[1754572701172,0.83261665,777.46,776.76,0.85756762]
[1754572701376,0.83261665,777.46,776.57,1.1527377]
[1754572701377,0.83261665,777.45,776.75,0.85756762]
[1754572701578,0.83261665,777.44,776.75,0.85756762]
[1754572701778,0.83261665,777.43,776.75,0.85756762]
[1754572702077,0.83261665,777.42,776.75,0.85756762]
[1754572702277,0.83261665,777.42,776.56,1.1527377]
[1754572702278,0.83261665,777.41,776.76,0.85756762]
[1754572702478,0.83261665,777.4,776.77,0.85756762]
[1754572702679,0.83261665,777.39,776.77,0.85756762]
[1754572702979,0.83261665,777.38,776.77,0.85756762]
[1754572703177,0.86426729,777.48,776.77,0.85756762]
[1754572703382,0.8327639,777.47,776.77,0.85756762]
[1754572703582,0.8327639,777.46,776.77,0.85756762]
[1754572703782,0.83276385,777.45,776.77,0.85756762]